[Event "Hull 4NCL GM Tournament"]
[Site "Hull University, Hull, UK"]
[Date "2021.10.20"]
[Round "1.1"]
[White "Murphy, Conor E"]
[Black "Willow, Jonah B"]
[Result "1-0"]
[TimeControl "90+30"]
[WhiteClock "00:07:08"]
[BlackClock "00:00:12"]
[WhiteElo "2428"]
[BlackElo "2353"]

1. e4 {[%clk 01:30:55]} {[%emt 00:00:04]} e5 {[%clk 01:30:53]} {[%emt
00:00:07]} 2. Nf3 {[%clk 01:31:13]} {[%emt 00:00:12]} Nc6 {[%clk 01:31:18]}
{[%emt 00:00:05]} 3. Bb5 {[%clk 01:31:24]} {[%emt 00:00:18]} a6 {[%clk
01:31:28]} {[%emt 00:00:21]} 4. Ba4 {[%clk 01:31:36]} {[%emt 00:00:18]} Nf6
{[%clk 01:31:47]} {[%emt 00:00:11]} 5. O-O {[%clk 01:31:47]} {[%emt 00:00:18]}
Nxe4 {[%clk 01:32:09]} {[%emt 00:00:10]} 6. d4 {[%clk 01:30:33]} {[%emt
00:01:44]} Be7 {[%clk 01:32:24]} {[%emt 00:00:16]} 7. Re1 {[%clk 01:27:10]}
{[%emt 00:03:53]} b5 {[%clk 01:32:22]} {[%emt 00:00:32]} 8. Rxe4 {[%clk
01:26:44]} {[%emt 00:00:55]} d5 {[%clk 01:32:49]} {[%emt 00:00:04]} 9. Nxe5
{[%clk 01:25:10]} {[%emt 00:02:04]} Nxe5 {[%clk 01:33:15]} {[%emt 00:00:04]} 10.
Rxe5 {[%clk 01:25:23]} {[%emt 00:00:16]} bxa4 {[%clk 01:33:42]} {[%emt
00:00:04]} 11. b3 {[%clk 01:19:13]} {[%emt 00:06:40]} O-O {[%clk 01:33:47]}
{[%emt 00:00:24]} 12. Ba3 {[%clk 01:18:19]} {[%emt 00:01:24]} Bxa3 {[%clk
01:32:44]} {[%emt 00:01:34]} 13. Nxa3 {[%clk 01:18:36]} {[%emt 00:00:13]} axb3
{[%clk 01:28:34]} {[%emt 00:04:40]} 14. axb3 {[%clk 01:14:37]} {[%emt
00:04:29]} Be6 {[%clk 01:28:53]} {[%emt 00:00:11]} 15. Nb1 {[%clk 01:09:29]}
{[%emt 00:05:38]} Qh4 {[%clk 01:23:31]} {[%emt 00:05:52]} 16. Nc3 {[%clk
01:05:10]} {[%emt 00:04:49]} c6 {[%clk 01:17:16]} {[%emt 00:06:45]} 17. Na4
{[%clk 01:01:13]} {[%emt 00:04:27]} Rae8 {[%clk 00:54:20]} {[%emt 00:23:26]} 18.
Qd2 {[%clk 00:52:44]} {[%emt 00:08:58]} f6 {[%clk 00:37:23]} {[%emt 00:17:27]}
19. Re3 {[%clk 00:49:53]} {[%emt 00:03:21]} Bf5 {[%clk 00:33:01]} {[%emt
00:04:53]} 20. Rae1 {[%clk 00:40:20]} {[%emt 00:10:03]} Qg5 {[%clk 00:28:31]}
{[%emt 00:05:00]} 21. Qc3 {[%clk 00:31:45]} {[%emt 00:09:04]} Rxe3 {[%clk
00:26:59]} {[%emt 00:02:03]} 22. Rxe3 {[%clk 00:23:45]} {[%emt 00:08:30]} Bh3
{[%clk 00:27:05]} {[%emt 00:00:25]} 23. g3 {[%clk 00:23:01]} {[%emt 00:01:13]}
h5 {[%clk 00:11:03]} {[%emt 00:16:32]} 24. Nb6 {[%clk 00:17:33]} {[%emt
00:05:58]} Qg4 {[%clk 00:01:58]} {[%emt 00:09:35]} 25. f3 {[%clk 00:16:03]}
{[%emt 00:01:59]} Qg5 {[%clk 00:02:23]} {[%emt 00:00:05]} 26. Kf2 {[%clk
00:15:46]} {[%emt 00:00:47]} f5 {[%clk 00:02:16]} {[%emt 00:00:38]} 27. f4
{[%clk 00:08:05]} {[%emt 00:08:09]} Qg4 {[%clk 00:02:44]} {[%emt 00:00:04]} 28.
Nd7 {[%clk 00:07:08]} {[%emt 00:01:27]} 1-0

[ePGN "0.1;DGT LiveChess/2.2.5"]

[Event "Hull 4NCL GM Tournament"]
[Site "Hull University, Hull, UK"]
[Date "2021.10.20"]
[Round "1.2"]
[White "Wadsworth, Matthew J"]
[Black "Clarke, Brandon G I"]
[Result "0-1"]
[TimeControl "90+30"]
[WhiteElo "2425"]
[BlackElo "2442"]

1. c4 {[%clk 01:30:57]} {[%emt 00:00:02]} Nf6 {[%clk 01:29:19]} {[%emt
00:01:41]} 2. g3 {[%clk 01:31:12]} {[%emt 00:00:16]} g6 {[%clk 01:29:38]}
{[%emt 00:00:10]} 3. Bg2 {[%clk 01:31:31]} {[%emt 00:00:11]} Bg7 {[%clk
01:28:26]} {[%emt 00:01:42]} 4. Nc3 {[%clk 01:31:45]} {[%emt 00:00:16]} O-O
{[%clk 01:28:40]} {[%emt 00:00:16]} 5. d3 {[%clk 01:31:51]} {[%emt 00:00:24]}
d6 {[%clk 01:26:46]} {[%emt 00:02:24]} 6. Bg5 {[%clk 01:32:07]} {[%emt
00:00:14]} h6 {[%clk 01:26:13]} {[%emt 00:01:03]} 7. Bd2 {[%clk 01:32:28]}
{[%emt 00:00:09]} Nc6 {[%clk 01:25:26]} {[%emt 00:01:17]} 8. Rb1 {[%clk
01:30:28]} {[%emt 00:02:30]} a5 {[%clk 01:25:23]} {[%emt 00:00:33]} 9. Qc1
{[%clk 01:29:38]} {[%emt 00:01:21]} Kh7 {[%clk 01:25:22]} {[%emt 00:00:29]} 10.
h4 {[%clk 01:29:50]} {[%emt 00:00:19]} e5 {[%clk 01:25:17]} {[%emt 00:00:36]}
11. h5 {[%clk 01:27:31]} {[%emt 00:02:49]} g5 {[%clk 01:19:05]} {[%emt
00:06:41]} 12. Nf3 {[%clk 01:26:30]} {[%emt 00:01:32]} Nd7 {[%clk 00:57:02]}
{[%emt 00:22:32]} 13. Nxg5+ {[%clk 01:06:50]} {[%emt 00:20:10]} hxg5 {[%clk
00:57:17]} {[%emt 00:00:15]} 14. Bxg5 {[%clk 01:07:19]} {[%emt 00:00:02]} Bf6
{[%clk 00:45:24]} {[%emt 00:12:22]} 15. Be4+ {[%clk 01:06:41]} {[%emt
00:01:09]} Kg7 {[%clk 00:45:50]} {[%emt 00:00:04]} 16. Bh6+ {[%clk 01:02:10]}
{[%emt 00:05:01]} Kh8 {[%clk 00:46:06]} {[%emt 00:00:14]} 17. Bxf8 {[%clk
00:50:58]} {[%emt 00:11:42]} Qxf8 {[%clk 00:46:33]} {[%emt 00:00:03]} 18. Nd5
{[%clk 00:48:13]} {[%emt 00:03:16]} Bd8 {[%clk 00:47:00]} {[%emt 00:00:02]} 19.
g4 {[%clk 00:42:32]} {[%emt 00:06:12]} f6 {[%clk 00:38:27]} {[%emt 00:09:02]}
20. Ne3 {[%clk 00:39:20]} {[%emt 00:03:43]} Qh6 {[%clk 00:27:38]} {[%emt
00:11:18]} 21. Bg6 {[%clk 00:29:35]} {[%emt 00:10:15]} Nc5 {[%clk 00:26:10]}
{[%emt 00:01:58]} 22. Nf5 {[%clk 00:28:42]} {[%emt 00:01:23]} Qg5 {[%clk
00:25:20]} {[%emt 00:01:20]} 23. Qxg5 {[%clk 00:26:04]} {[%emt 00:03:09]} fxg5
{[%clk 00:25:47]} {[%emt 00:00:02]} 24. Kd2 {[%clk 00:24:25]} {[%emt 00:02:09]}
a4 {[%clk 00:25:25]} {[%emt 00:00:52]} 25. h6 {[%clk 00:21:03]} {[%emt
00:03:52]} Bf6 {[%clk 00:24:54]} {[%emt 00:01:00]} 26. h7 {[%clk 00:19:11]}
{[%emt 00:02:23]} Be6 {[%clk 00:23:35]} {[%emt 00:01:49]} 27. Nh6 {[%clk
00:16:37]} {[%emt 00:03:04]} Rf8 {[%clk 00:20:31]} {[%emt 00:03:34]} 28. Bf5
{[%clk 00:14:48]} {[%emt 00:02:19]} Bxf5 {[%clk 00:15:37]} {[%emt 00:05:24]} 29.
Nxf5 {[%clk 00:15:12]} {[%emt 00:00:06]} e4 {[%clk 00:15:14]} {[%emt 00:00:53]}
30. b4 {[%clk 00:11:11]} {[%emt 00:04:31]} axb3 {[%clk 00:15:32]} {[%emt
00:00:13]} 31. axb3 {[%clk 00:11:40]} exd3 {[%clk 00:15:26]} {[%emt 00:00:35]}
32. exd3 {[%clk 00:11:21]} {[%emt 00:00:49]} Nd4 {[%clk 00:15:29]} {[%emt
00:00:27]} 33. b4 {[%clk 00:10:32]} {[%emt 00:01:19]} Ncb3+ {[%clk 00:14:26]}
{[%emt 00:01:33]} 34. Kd1 {[%clk 00:09:12]} {[%emt 00:01:50]} Nxf5 {[%clk
00:14:53]} {[%emt 00:00:03]} 35. gxf5 {[%clk 00:09:01]} {[%emt 00:00:42]} Nd4
{[%clk 00:15:18]} {[%emt 00:00:04]} 36. Ra1 {[%clk 00:08:31]} {[%emt 00:01:00]}
Nxf5 {[%clk 00:15:44]} {[%emt 00:00:04]} 37. Ra7 {[%clk 00:08:53]} {[%emt
00:00:08]} Rb8 {[%clk 00:15:23]} {[%emt 00:00:50]} 38. Ra5 {[%clk 00:08:54]}
{[%emt 00:00:30]} Nd4 {[%clk 00:11:20]} {[%emt 00:04:33]} 39. Rh6 {[%clk
00:06:39]} {[%emt 00:02:45]} Rf8 {[%clk 00:07:18]} {[%emt 00:04:31]} 40. Ra7
{[%clk 00:05:54]} {[%emt 00:01:15]} Be5 {[%clk 00:07:41]} {[%emt 00:00:07]} 41.
Ke1 {[%clk 00:02:51]} {[%emt 00:03:34]} g4 {[%clk 00:07:08]} {[%emt 00:01:03]}
42. Rg6 {[%clk 00:02:38]} {[%emt 00:00:43]} Nc2+ {[%clk 00:05:15]} {[%emt
00:02:24]} 43. Ke2 {[%clk 00:02:41]} {[%emt 00:00:27]} Kxh7 {[%clk 00:04:56]}
{[%emt 00:00:48]} 44. Rxg4 {[%clk 00:02:27]} {[%emt 00:00:43]} Bd4 {[%clk
00:05:25]} {[%emt 00:00:02]} 45. Rxd4 {[%clk 00:01:29]} {[%emt 00:01:28]} Nxd4+
{[%clk 00:05:53]} {[%emt 00:00:02]} 46. Ke3 {[%clk 00:01:49]} {[%emt 00:00:10]}
Nc2+ {[%clk 00:05:42]} {[%emt 00:00:42]} 47. Kd2 {[%clk 00:02:17]} {[%emt
00:00:01]} Nxb4 {[%clk 00:04:30]} {[%emt 00:01:42]} 48. Rxb7 {[%clk 00:02:41]}
{[%emt 00:00:06]} Na6 {[%clk 00:04:45]} {[%emt 00:00:16]} 49. Ke3 {[%clk
00:02:00]} {[%emt 00:01:10]} Re8+ {[%clk 00:04:02]} {[%emt 00:01:13]} 50. Kf3
{[%clk 00:01:24]} {[%emt 00:01:07]} Re7 {[%clk 00:03:50]} {[%emt 00:00:42]} 51.
d4 {[%clk 00:00:52]} {[%emt 00:01:01]} Kg6 {[%clk 00:04:16]} {[%emt 00:00:04]}
52. Kg4 {[%clk 00:00:49]} {[%emt 00:00:34]} Re4+ {[%clk 00:03:43]} {[%emt
00:01:03]} 53. f4 {[%clk 00:01:17]} {[%emt 00:00:01]} Rxd4 {[%clk 00:04:04]}
{[%emt 00:00:10]} 54. Ra7 {[%clk 00:01:42]} {[%emt 00:00:05]} Nc5 {[%clk
00:04:19]} {[%emt 00:00:14]} 55. Rxc7 {[%clk 00:01:54]} {[%emt 00:00:18]} Rxf4+
{[%clk 00:03:06]} {[%emt 00:01:44]} 56. Kh3 {[%clk 00:01:47]} {[%emt 00:00:36]}
Rxc4 {[%clk 00:03:28]} {[%emt 00:00:08]} 57. Rc6 {[%clk 00:02:10]} {[%emt
00:00:07]} Rd4 {[%clk 00:03:40]} {[%emt 00:00:18]} 58. Kg3 {[%clk 00:02:30]}
{[%emt 00:00:11]} Kf5 {[%clk 00:03:54]} {[%emt 00:00:16]} 59. Rc8 {[%clk
00:02:49]} {[%emt 00:00:10]} Rd3+ {[%clk 00:04:15]} {[%emt 00:00:10]} 60. Kf2
{[%clk 00:03:11]} {[%emt 00:00:08]} Nd7 {[%clk 00:04:25]} {[%emt 00:00:20]} 61.
Ke2 {[%clk 00:03:08]} {[%emt 00:00:34]} Ne5 {[%clk 00:04:42]} {[%emt 00:00:12]}
62. Re8 {[%clk 00:03:19]} {[%emt 00:00:19]} Ra3 {[%clk 00:04:57]} {[%emt
00:00:15]} 63. Rh8 {[%clk 00:03:38]} {[%emt 00:00:10]} d5 {[%clk 00:04:29]}
{[%emt 00:00:58]} 64. Rh5+ {[%clk 00:03:53]} {[%emt 00:00:15]} Kf4 {[%clk
00:04:55]} {[%emt 00:00:04]} 65. Rh4+ {[%clk 00:04:14]} {[%emt 00:00:09]} Ng4
{[%clk 00:05:17]} {[%emt 00:00:08]} 66. Kd2 {[%clk 00:04:35]} {[%emt 00:00:10]}
d4 {[%clk 00:05:30]} {[%emt 00:00:17]} 67. Kc2 {[%clk 00:04:49]} {[%emt
00:00:16]} Rg3 {[%clk 00:05:39]} {[%emt 00:00:20]} 68. Rh8 {[%clk 00:05:05]}
{[%emt 00:00:14]} Ke4 {[%clk 00:05:54]} {[%emt 00:00:15]} 69. Re8+ {[%clk
00:05:18]} {[%emt 00:00:17]} Ne5 {[%clk 00:06:21]} {[%emt 00:00:03]} 0-1

[Event "Hull 4NCL GM Tournament"]
[Site "Hull University, Hull, UK"]
[Date "2021.10.20"]
[Round "1.3"]
[White "Davies, Nigel R"]
[Black "Jackson, James P"]
[Result "1/2-1/2"]
[TimeControl "90+30"]
[WhiteElo "2475"]
[BlackElo "2386"]

1. Nf3 {[%clk 01:30:53]} {[%emt 00:00:06]} Nf6 {[%clk 01:30:54]} {[%emt
00:00:07]} 2. g3 {[%clk 01:31:09]} {[%emt 00:00:14]} g6 {[%clk 01:30:24]}
{[%emt 00:01:00]} 3. Bg2 {[%clk 01:31:27]} {[%emt 00:00:11]} Bg7 {[%clk
01:30:49]} {[%emt 00:00:06]} 4. O-O {[%clk 01:31:48]} {[%emt 00:00:08]} O-O
{[%clk 01:31:14]} {[%emt 00:00:05]} 5. c4 {[%clk 01:32:06]} {[%emt 00:00:12]}
d6 {[%clk 01:30:26]} {[%emt 00:01:18]} 6. d4 {[%clk 01:32:22]} {[%emt
00:00:13]} Nc6 {[%clk 01:30:18]} {[%emt 00:00:39]} 7. Nc3 {[%clk 01:32:43]}
{[%emt 00:00:09]} e5 {[%clk 01:30:30]} {[%emt 00:00:18]} 8. d5 {[%clk
01:32:48]} {[%emt 00:00:25]} Nb8 {[%clk 01:30:44]} {[%emt 00:00:16]} 9. e4
{[%clk 01:31:51]} {[%emt 00:01:27]} a5 {[%clk 01:30:13]} {[%emt 00:01:02]} 10.
h3 {[%clk 01:15:06]} {[%emt 00:17:14]} Na6 {[%clk 01:29:31]} {[%emt 00:01:12]}
11. Be3 {[%clk 01:12:39]} {[%emt 00:02:57]} Nd7 {[%clk 01:28:01]} {[%emt
00:02:01]} 12. Qd2 {[%clk 01:10:46]} {[%emt 00:02:23]} f5 {[%clk 01:16:16]}
{[%emt 00:12:15]} 13. Ng5 {[%clk 01:07:32]} {[%emt 00:03:43]} Ndc5 {[%clk
01:16:18]} {[%emt 00:00:28]} 14. f4 {[%clk 01:07:21]} {[%emt 00:00:41]} exf4
{[%clk 01:02:28]} {[%emt 00:14:21]} 15. Bxf4 {[%clk 01:05:23]} {[%emt
00:02:27]} fxe4 {[%clk 00:42:59]} {[%emt 00:19:59]} 16. Ncxe4 {[%clk 01:01:37]}
{[%emt 00:04:15]} Nxe4 {[%clk 00:41:50]} {[%emt 00:01:40]} 17. Nxe4 {[%clk
00:41:50]} {[%emt 00:20:16]} Bf5 {[%clk 00:40:08]} {[%emt 00:02:12]} 18. Rae1
{[%clk 00:41:37]} {[%emt 00:00:42]} Bxe4 {[%clk 00:36:42]} {[%emt 00:03:56]} 19.
Rxe4 {[%clk 00:39:53]} {[%emt 00:02:14]} Nc5 {[%clk 00:36:37]} {[%emt
00:00:36]} 20. Re2 {[%clk 00:40:13]} {[%emt 00:00:09]} Qd7 {[%clk 00:33:34]}
{[%emt 00:03:34]} 21. h4 {[%clk 00:34:32]} {[%emt 00:06:09]} 1/2-1/2

[Event "Hull 4NCL GM Tournament"]
[Site "Hull University, Hull, UK"]
[Date "2021.10.20"]
[Round "1.4"]
[White "Czopor, Maciej"]
[Black "Fodor, Tamas Jr."]
[Result "1-0"]
[TimeControl "90+30"]
[WhiteClock "00:01:04"]
[BlackClock "00:04:39"]
[WhiteElo "2411"]
[BlackElo "2524"]

1. e4 {[%clk 01:30:57]} {[%emt 00:00:02]} e6 {[%clk 01:30:45]} {[%emt
00:00:15]} 2. d4 {[%clk 01:31:19]} {[%emt 00:00:08]} d5 {[%clk 01:31:10]}
{[%emt 00:00:05]} 3. Nd2 {[%clk 01:31:40]} {[%emt 00:00:09]} c5 {[%clk
01:31:33]} {[%emt 00:00:07]} 4. Ngf3 {[%clk 01:32:01]} {[%emt 00:00:09]} cxd4
{[%clk 01:31:49]} {[%emt 00:00:13]} 5. Nxd4 {[%clk 01:32:19]} {[%emt 00:00:12]}
Nc6 {[%clk 01:31:48]} {[%emt 00:00:31]} 6. Bb5 {[%clk 01:32:34]} {[%emt
00:00:15]} Bd7 {[%clk 01:32:07]} {[%emt 00:00:11]} 7. Nxc6 {[%clk 01:32:47]}
{[%emt 00:00:18]} bxc6 {[%clk 01:32:30]} {[%emt 00:00:06]} 8. Bd3 {[%clk
01:33:11]} {[%emt 00:00:06]} Bd6 {[%clk 01:32:22]} {[%emt 00:00:38]} 9. Qe2
{[%clk 01:32:53]} {[%emt 00:00:48]} e5 {[%clk 01:30:34]} {[%emt 00:02:18]} 10.
exd5 {[%clk 01:19:14]} {[%emt 00:14:08]} cxd5 {[%clk 01:29:23]} {[%emt
00:01:41]} 11. c4 {[%clk 01:19:21]} {[%emt 00:00:24]} Nf6 {[%clk 01:15:13]}
{[%emt 00:14:40]} 12. O-O {[%clk 01:01:49]} {[%emt 00:18:02]} Bg4 {[%clk
01:02:49]} {[%emt 00:12:54]} 13. f3 {[%clk 01:01:04]} {[%emt 00:01:16]} Be6
{[%clk 01:03:07]} {[%emt 00:00:11]} 14. cxd5 {[%clk 01:00:13]} {[%emt
00:01:21]} Bc5+ {[%clk 00:56:08]} {[%emt 00:07:29]} 15. Kh1 {[%clk 01:00:37]}
{[%emt 00:00:07]} Qxd5 {[%clk 00:56:21]} {[%emt 00:00:17]} 16. Ne4 {[%clk
00:42:29]} {[%emt 00:18:37]} Bd4 {[%clk 00:38:37]} {[%emt 00:18:14]} 17. Bh6
{[%clk 00:30:26]} {[%emt 00:12:33]} Nxe4 {[%clk 00:23:24]} {[%emt 00:15:44]} 18.
Bxe4 {[%clk 00:27:08]} {[%emt 00:03:48]} Qc4 {[%clk 00:23:34]} {[%emt
00:00:19]} 19. Bd3 {[%clk 00:27:15]} {[%emt 00:00:23]} Qxd3 {[%clk 00:14:42]}
{[%emt 00:09:23]} 20. Qxd3 {[%clk 00:27:36]} {[%emt 00:00:09]} gxh6 {[%clk
00:15:07]} {[%emt 00:00:04]} 21. f4 {[%clk 00:20:06]} {[%emt 00:08:01]} Rd8
{[%clk 00:13:15]} {[%emt 00:02:22]} 22. fxe5 {[%clk 00:18:57]} {[%emt
00:01:39]} Rg8 {[%clk 00:13:13]} {[%emt 00:00:32]} 23. Rad1 {[%clk 00:15:00]}
{[%emt 00:04:28]} Rg4 {[%clk 00:09:50]} {[%emt 00:03:52]} 24. h3 {[%clk
00:14:33]} {[%emt 00:00:57]} Rh4 {[%clk 00:08:58]} {[%emt 00:01:21]} 25. Qg3
{[%clk 00:13:16]} {[%emt 00:01:47]} Rh5 {[%clk 00:08:24]} {[%emt 00:01:04]} 26.
Qa3 {[%clk 00:09:01]} {[%emt 00:04:45]} Rd7 {[%clk 00:07:57]} {[%emt 00:00:57]}
27. Qb4 {[%clk 00:02:19]} {[%emt 00:07:12]} Rh4 {[%clk 00:07:34]} {[%emt
00:00:53]} 28. Qe1 {[%clk 00:02:14]} {[%emt 00:00:36]} Rh5 {[%clk 00:07:41]}
{[%emt 00:00:23]} 29. Qe4 {[%clk 00:01:44]} {[%emt 00:01:00]} Rxe5 {[%clk
00:06:45]} {[%emt 00:01:25]} 30. Qxh7 {[%clk 00:01:16]} {[%emt 00:00:58]} Red5
{[%clk 00:06:10]} {[%emt 00:01:05]} 31. Rde1 {[%clk 00:00:48]} {[%emt
00:00:57]} Kd8 {[%clk 00:04:40]} {[%emt 00:02:00]} 32. Qg8+ {[%clk 00:01:04]}
{[%emt 00:00:14]} Kc7 {[%clk 00:05:05]} {[%emt 00:00:05]} 33. Rc1+ {[%clk
00:01:22]} {[%emt 00:00:12]} Kb6 {[%clk 00:05:18]} {[%emt 00:00:18]} 34. Qc8
{[%clk 00:00:42]} {[%emt 00:01:09]} R5d6 {[%clk 00:04:36]} {[%emt 00:01:13]} 35.
Qb8+ {[%clk 00:01:03]} {[%emt 00:00:09]} Ka6 {[%clk 00:04:58]} {[%emt
00:00:08]} 36. Rf3 {[%clk 00:00:36]} {[%emt 00:00:57]} Bb6 {[%clk 00:05:12]}
{[%emt 00:00:16]} 37. Qc8+ {[%clk 00:00:39]} {[%emt 00:00:27]} Kb5 {[%clk
00:05:11]} {[%emt 00:00:31]} 38. a4+ {[%clk 00:00:39]} {[%emt 00:00:30]} Kb4
{[%clk 00:04:26]} {[%emt 00:01:15]} 39. Rf4+ {[%clk 00:00:35]} {[%emt
00:00:34]} Rd4 {[%clk 00:04:51]} {[%emt 00:00:05]} 40. Qc6 {[%clk 00:00:33]}
{[%emt 00:00:32]} Kb3 {[%clk 00:04:08]} {[%emt 00:01:13]} 41. Qc2+ {[%clk
00:00:39]} {[%emt 00:00:25]} Kb4 {[%clk 00:04:16]} {[%emt 00:00:22]} 42. Qc6
{[%clk 00:01:05]} {[%emt 00:00:03]} Kb3 {[%clk 00:04:43]} {[%emt 00:00:03]} 43.
Rf3+ {[%clk 00:01:04]} {[%emt 00:00:32]} 1-0

[Event "Hull 4NCL GM Tournament"]
[Site "Hull University, Hull, UK"]
[Date "2021.10.20"]
[Round "1.5"]
[White "Turner, Matthew J"]
[Black "Royal, Shreyas"]
[Result "1-0"]
[TimeControl "90+30"]
[WhiteClock "00:10:15"]
[BlackClock "00:00:42"]
[WhiteElo "2471"]
[BlackElo "2226"]

1. c4 {[%clk 01:30:50]} {[%emt 00:00:08]} e6 {[%clk 01:30:52]} {[%emt
00:00:08]} 2. g3 {[%clk 01:30:55]} {[%emt 00:00:26]} Nf6 {[%clk 01:30:10]}
{[%emt 00:01:12]} 3. Bg2 {[%clk 01:31:03]} {[%emt 00:00:22]} d5 {[%clk
01:30:02]} {[%emt 00:00:38]} 4. Nf3 {[%clk 01:31:18]} {[%emt 00:00:14]} Be7
{[%clk 01:30:12]} {[%emt 00:00:20]} 5. O-O {[%clk 01:31:24]} {[%emt 00:00:25]}
O-O {[%clk 01:30:36]} {[%emt 00:00:05]} 6. b3 {[%clk 01:30:39]} {[%emt
00:01:15]} b6 {[%clk 01:30:05]} {[%emt 00:01:01]} 7. Bb2 {[%clk 01:29:07]}
{[%emt 00:02:02]} Bb7 {[%clk 01:30:00]} {[%emt 00:00:35]} 8. e3 {[%clk
01:27:24]} {[%emt 00:02:13]} c5 {[%clk 01:29:30]} {[%emt 00:00:59]} 9. Nc3
{[%clk 01:25:33]} {[%emt 00:02:21]} Qc8 {[%clk 01:29:00]} {[%emt 00:01:00]} 10.
cxd5 {[%clk 01:20:19]} {[%emt 00:05:44]} Nxd5 {[%clk 01:28:44]} {[%emt
00:00:46]} 11. Nxd5 {[%clk 01:16:21]} {[%emt 00:04:29]} Bxd5 {[%clk 01:28:51]}
{[%emt 00:00:23]} 12. d4 {[%clk 01:16:33]} {[%emt 00:00:18]} a5 {[%clk
01:24:50]} {[%emt 00:04:31]} 13. dxc5 {[%clk 01:13:43]} {[%emt 00:03:20]} bxc5
{[%clk 01:24:52]} {[%emt 00:00:28]} 14. Ne5 {[%clk 01:11:54]} {[%emt 00:02:19]}
Qb7 {[%clk 01:04:44]} {[%emt 00:20:39]} 15. Bxd5 {[%clk 01:05:05]} {[%emt
00:07:19]} exd5 {[%clk 01:05:00]} {[%emt 00:00:13]} 16. Qf3 {[%clk 01:01:49]}
{[%emt 00:03:46]} Nd7 {[%clk 00:59:06]} {[%emt 00:06:24]} 17. Nd3 {[%clk
00:57:37]} {[%emt 00:04:42]} Bd6 {[%clk 00:40:23]} {[%emt 00:19:13]} 18. Rfd1
{[%clk 00:46:51]} {[%emt 00:11:16]} f6 {[%clk 00:39:20]} {[%emt 00:01:33]} 19.
Rac1 {[%clk 00:38:36]} {[%emt 00:08:45]} a4 {[%clk 00:31:26]} {[%emt 00:08:24]}
20. Nf4 {[%clk 00:35:18]} {[%emt 00:03:48]} Bxf4 {[%clk 00:31:30]} {[%emt
00:00:26]} 21. exf4 {[%clk 00:35:33]} {[%emt 00:00:15]} axb3 {[%clk 00:30:24]}
{[%emt 00:01:36]} 22. axb3 {[%clk 00:35:45]} {[%emt 00:00:18]} Ra2 {[%clk
00:29:36]} {[%emt 00:01:18]} 23. Qxd5+ {[%clk 00:34:14]} {[%emt 00:02:01]} Qxd5
{[%clk 00:30:01]} {[%emt 00:00:05]} 24. Rxd5 {[%clk 00:34:40]} {[%emt
00:00:04]} Rxb2 {[%clk 00:25:37]} {[%emt 00:04:54]} 25. Rxd7 {[%clk 00:35:01]}
{[%emt 00:00:09]} Rf7 {[%clk 00:26:04]} {[%emt 00:00:03]} 26. Rd8+ {[%clk
00:33:31]} {[%emt 00:02:00]} Rf8 {[%clk 00:26:28]} {[%emt 00:00:07]} 27. Rd3
{[%clk 00:33:20]} {[%emt 00:00:41]} Rb8 {[%clk 00:24:11]} {[%emt 00:02:46]} 28.
Rcc3 {[%clk 00:33:28]} {[%emt 00:00:22]} Rb7 {[%clk 00:20:15]} {[%emt
00:04:27]} 29. Kg2 {[%clk 00:33:31]} {[%emt 00:00:26]} Kf7 {[%clk 00:18:25]}
{[%emt 00:02:21]} 30. g4 {[%clk 00:32:49]} {[%emt 00:01:12]} Rb4 {[%clk
00:09:55]} {[%emt 00:09:01]} 31. Kg3 {[%clk 00:31:33]} {[%emt 00:01:46]} Rb7
{[%clk 00:06:15]} {[%emt 00:04:10]} 32. h4 {[%clk 00:23:48]} {[%emt 00:08:15]}
Rb1 {[%clk 00:05:20]} {[%emt 00:01:25]} 33. f3 {[%clk 00:22:57]} {[%emt
00:01:21]} f5 {[%clk 00:02:26]} {[%emt 00:03:24]} 34. h5 {[%clk 00:20:27]}
{[%emt 00:03:00]} g6 {[%clk 00:01:56]} {[%emt 00:01:00]} 35. Rxc5 {[%clk
00:15:17]} {[%emt 00:05:40]} fxg4 {[%clk 00:01:22]} {[%emt 00:01:05]} 36. fxg4
{[%clk 00:15:05]} {[%emt 00:00:41]} R1xb3 {[%clk 00:01:25]} {[%emt 00:00:27]}
37. Rxb3 {[%clk 00:15:29]} {[%emt 00:00:06]} Rxb3+ {[%clk 00:01:51]} {[%emt
00:00:04]} 38. Kh4 {[%clk 00:15:54]} {[%emt 00:00:05]} gxh5 {[%clk 00:01:06]}
{[%emt 00:01:15]} 39. Kxh5 {[%clk 00:15:26]} {[%emt 00:00:58]} Rb7 {[%clk
00:00:54]} {[%emt 00:00:43]} 40. Kh6 {[%clk 00:15:05]} {[%emt 00:00:51]} Ke6
{[%clk 00:00:32]} {[%emt 00:00:52]} 41. Re5+ {[%clk 00:12:55]} {[%emt
00:02:39]} Kd6 {[%clk 00:00:47]} {[%emt 00:00:16]} 42. Re1 {[%clk 00:11:32]}
{[%emt 00:01:52]} Kd5 {[%clk 00:00:36]} {[%emt 00:00:42]} 43. f5 {[%clk
00:11:14]} {[%emt 00:00:48]} Rf7 {[%clk 00:00:45]} {[%emt 00:00:21]} 44. Re8
{[%clk 00:10:33]} {[%emt 00:01:11]} Ra7 {[%clk 00:00:46]} {[%emt 00:00:30]} 45.
g5 {[%clk 00:10:31]} {[%emt 00:00:31]} Rf7 {[%clk 00:00:46]} {[%emt 00:00:30]}
46. f6 {[%clk 00:10:15]} {[%emt 00:00:47]} 1-0

[ePGN "0.1;DGT LiveChess/2.2.5"]